bitfinex/quotes_SOLUSD_20240922
["timestamp","ask_amount","ask_price","bid_price","bid_amount"]
[1726970688840,79.76112992,148.0,147.98,0.2500779]
[1726970689536,78.07083981,148.0,147.98,0.2500779]
[1726970691133,79.76115693,148.0,147.98,0.2500779]
[1726970691333,59.76115693,148.0,147.98,0.2500779]
[1726970691541,79.76115693,148.0,147.98,0.2500779]
[1726970691850,59.76115693,148.0,147.98,0.2500779]
[1726970694646,59.89047093,148.0,147.98,0.2500779]
[1726970695533,58.20015381,148.0,147.98,0.2500779]
[1726970695735,59.89026041,148.0,147.98,0.2500779]
[1726970696135,58.20015381,148.0,147.98,0.2500779]
[1726970698233,59.89024926,148.0,147.98,0.2500779]
[1726970698961,13.88228981,148.0,147.98,0.2500779]
[1726970700238,14.13326981,148.0,147.98,0.2500779]
[1726970700556,37.91015381,148.0,147.98,0.2500779]
[1726970700941,39.60002636,148.0,147.98,0.2500779]
[1726970702066,59.91002636,148.0,147.98,0.2500779]
[1726970707776,7.12558981,148.0,147.98,0.2500779]
[1726970708264,0.129314,148.0,147.98,0.2500779]
[1726970708558,8.57577334,148.0,147.98,0.2500779]
[1726970708958,25.84693734,148.0,147.98,0.2500779]
[1726970710350,24.157178,148.0,147.98,0.2500779]
[1726970712058,30.913878,148.0,147.98,0.2500779]
[1726970712265,32.60360298,148.0,147.98,0.2500779]
[1726970714570,53.04963662,148.0,147.98,0.2500779]
[1726970714862,51.35991164,148.0,147.98,0.2500779]
[1726970716060,51.23059764,148.0,147.98,0.2500779]
[1726970717908,30.92059764,148.0,147.98,0.2500779]
[1726970718168,24.16389764,148.0,147.98,0.2500779]
[1726970718655,25.85363713,148.0,147.98,0.2500779]
[1726970720149,32.61033713,148.0,147.98,0.2500779]
[1726970723172,30.92059764,148.0,147.98,0.2500779]
[1726970724685,51.23059764,148.0,147.98,0.2500779]
[1726970729566,52.92052773,148.0,147.98,0.2500779]
[1726970729766,51.23059764,148.0,147.98,0.2500779]
[1726970733656,0.13603364,148.0,147.99,12.90403371]
[1726970734558,0.26284972,148.0,147.99,12.90403371]
[1726970735255,0.38833972,148.0,147.99,12.90403371]
[1726970735460,0.51382972,148.0,147.99,12.90403371]
[1726970736062,0.37779608,148.0,147.99,12.90403371]
[1726970740951,2.06726665,148.0,147.99,12.90403371]
[1726970741178,25.84415065,148.0,147.99,0.1712293]
[1726970742384,24.15468008,148.0,147.99,0.1712293]
[1726970742759,25.84446312,148.0,147.99,0.1712293]
[1726970747481,32.60116312,148.0,147.99,0.1712293]
[1726970748483,52.91116312,148.0,147.99,0.1712293]
[1726970748673,52.91116312,148.0,147.98,0.2500779]
[1726970748674,27.0672,147.99,147.98,0.2500779]
[1726970748880,50.844084,147.99,147.98,0.2500779]
[1726970750786,51.095064,147.99,147.98,0.2500779]
[1726970752393,52.78512423,147.99,147.98,0.2500779]
[1726970754567,72.92310915,147.99,147.98,0.2500779]
[1726970755082,79.98240921,147.99,147.98,0.2500779]
[1726970755590,78.29234898,147.99,147.98,0.2500779]
[1726970757078,58.29234898,147.99,147.98,0.2500779]
[1726970758393,59.98258261,147.99,147.98,0.1246779]
[1726970758795,51.53514898,147.99,147.98,0.1246779]
[1726970759098,59.98261575,147.99,147.98,0.1246779]
[1726970759275,59.9826204,147.99,147.98,0.1246779]
[1726970759685,58.29234898,147.99,147.98,0.1246779]
[1726970760005,51.40965898,147.99,147.98,0.1246779]
[1726970761187,58.29234898,147.99,147.98,0.1246779]
[1726970762704,7.19728498,147.99,147.98,0.1246779]
[1726970763075,0.13798492,147.99,147.98,0.1246779]
[1726970764892,0.26347492,147.99,147.98,0.1246779]
[1726970765078,1.95324379,147.99,147.98,0.1246779]
[1726970765595,2.07873379,147.99,147.98,0.1246779]
[1726970766194,25.85561779,147.99,147.98,0.1246779]
[1726970768488,32.61281779,147.99,147.98,0.1246779]
[1726970769208,52.92281779,147.99,147.98,0.1246779]
[1726970769384,32.61281779,147.99,147.98,0.1246779]
[1726970770998,24.027864,147.95,147.93,0.2500779]
[1726970771297,1.815984,147.94,147.93,0.2500779]
[1726970772783,1.941474,147.94,147.93,0.2500779]
[1726970773391,0.25098,147.94,147.93,12.98288231]
[1726970773799,0.13798492,147.99,147.93,12.98288231]
[1726970774001,0.13798492,147.99,147.97,12.73280441]
[1726970774594,0.12425882,147.98,147.97,12.73280441]
[1726970775298,2.06499637,147.98,147.97,12.73280441]
[1726970775703,2.06499637,147.98,147.93,0.2500779]
[1726970775918,0.37523882,147.98,147.96,12.73280441]
[1726970776413,0.37523882,147.98,147.96,19.49130441]
[1726970776592,0.34145161,147.98,147.96,19.49130441]
[1726970777009,0.34145161,147.98,147.96,12.73280441]
[1726970778225,0.34145161,147.98,147.97,6.7581]
[1726970778720,0.34145161,147.98,147.96,19.49120441]
[1726970779122,1.81521778,147.97,147.96,12.73280441]
[1726970780234,1.81521778,147.97,147.93,0.2500779]
[1726970780235,0.12549,147.96,147.93,0.2500779]
[1726970780412,0.12549,147.94,147.93,0.2500779]
[1726970781118,23.902374,147.94,147.93,0.2500779]
[1726970782006,24.027864,147.94,147.93,0.2500779]
[1726970785320,0.25098,147.94,147.93,0.2500779]
[1726970785498,0.12549,147.94,147.93,0.2500779]
[1726970792912,0.09047161,147.98,147.93,0.2500779]
[1726970793119,23.99284561,147.98,147.93,0.2500779]
[1726970793306,0.12549,147.96,147.93,0.2500779]
[1726970793507,0.12549,147.94,147.93,0.2500779]
[1726970794608,0.25137498,147.94,147.93,0.2500779]
[1726970794817,0.37686498,147.94,147.93,0.2500779]
[1726970795129,2.06719677,147.94,147.93,0.2500779]
[1726970800532,25.84408077,147.94,147.93,0.2500779]
[1726970801442,24.15374898,147.94,147.93,0.2500779]
[1726970801741,25.8443382,147.94,147.93,0.2500779]
[1726970805342,24.15374898,147.94,147.93,0.2500779]
[1726970806845,0.12588498,147.94,147.93,0.2500779]
[1726970808053,0.37686498,147.94,147.93,0.2500779]
[1726970810320,0.25098,147.93,147.9,0.1712293]
[1726970810633,44.086884,147.91,147.9,0.1712293]
[1726970811231,64.086884,147.91,147.9,0.1712293]
[1726970811939,65.77790088,147.91,147.9,0.1712293]
[1726970812326,66.02888088,147.91,147.9,0.1712293]
[1726970813856,72.78968088,147.91,147.9,0.1712293]
[1726970814345,72.78968088,147.91,147.89,0.2500779]
[1726970814346,64.337864,147.9,147.89,0.2500779]
[1726970814551,81.39195876,147.9,147.89,0.2500779]
[1726970814725,81.53656893,147.9,147.89,0.2500779]
[1726970815260,79.84507417,147.9,147.89,0.2500779]
[1726970817452,81.53647892,147.9,147.89,0.2500779]
[1726970817930,20.25098,147.88,147.84,0.0001558]
[1726970818130,40.56098,147.88,147.84,0.0001558]
[1726970818845,0.25098,147.86,147.84,0.0001558]
[1726970819228,1.94244869,147.85,147.84,0.0001558]
[1726970819932,0.25098,147.85,147.84,0.0001558]
[1726970823450,1.94234201,147.85,147.84,0.0001558]
[1726970824451,0.25098,147.85,147.84,0.0001558]
[1726970827466,1.94234949,147.85,147.84,0.0001558]
[1726970828559,0.25098,147.85,147.84,0.0001558]
[1726970828740,1.94239146,147.85,147.84,0.0001558]
[1726970829240,0.25098,147.85,147.84,0.0001558]
[1726970829747,1.94237053,147.85,147.84,0.0001558]
[1726970830754,0.25098,147.85,147.84,0.0001558]
[1726970830946,1.94242442,147.85,147.84,0.0001558]
[1726970831863,0.25098,147.85,147.84,0.0001558]
[1726970832067,1.942479,147.85,147.84,0.0001558]
[1726970833064,0.25098,147.85,147.84,0.0001558]
[1726970833268,1.94249308,147.85,147.84,0.0001558]
[1726970833476,40.56098,147.84,147.81,0.1712293]
[1726970833644,0.12549,147.82,147.81,0.1712293]
[1726970834766,0.25188056,147.82,147.81,0.1712293]
[1726970835139,0.25188056,147.82,147.81,0.0458293]
[1726970835343,0.25188056,147.82,147.8,0.2500779]
[1726970836640,1.69206682,147.81,147.8,0.2500779]
[1726970837358,1.94304682,147.81,147.8,0.2500779]
[1726970837843,0.25098,147.81,147.8,0.2500779]
[1726970840178,1.94305141,147.81,147.8,0.2500779]
[1726970841353,0.25098,147.81,147.8,0.2500779]
[1726970851554,7.17628507,147.82,147.8,13.02591949]
[1726970851870,7.17628507,147.82,147.81,12.77584159]
[1726970852184,0.12639056,147.82,147.81,12.77584159]
[1726970852478,0.12639056,147.82,147.81,19.54124159]
[1726970854477,0.37737056,147.82,147.81,19.54124159]
[1726970854679,0.5023126,147.82,147.81,19.54124159]
[1726970855683,0.5023126,147.82,147.81,12.77584159]
[1726970855983,0.12494204,147.82,147.81,19.54124159]
[1726970857575,0.37592204,147.82,147.81,12.77584159]
[1726970858180,0.37592204,147.82,147.81,19.54124159]
[1726970858559,0.37592204,147.82,147.81,12.77584159]
[1726970862185,0.37592204,147.82,147.8,0.2500779]
[1726970862392,0.25098,147.81,147.8,0.2500779]
[1726970862576,0.25098,147.81,147.8,13.02591949]
[1726970867339,0.25098,147.81,147.8,19.79171949]
[1726970870495,0.12494204,147.82,147.81,6.7654]
[1726970870791,0.37592204,147.82,147.81,6.7654]
[1726970871372,0.37592204,147.82,147.8,19.79171949]
[1726970874702,0.14752229,147.81,147.8,19.79171949]
[1726970877291,2.08998523,147.81,147.8,0.2500779]
[1726970882387,0.27301229,147.81,147.8,19.79171949]
[1726970882591,0.14752229,147.81,147.8,19.79171949]
[1726970882990,0.13682742,147.82,147.8,19.79171949]
[1726970882991,0.13682742,147.82,147.81,30.542284]
[1726970883193,0.14845728,147.83,147.82,30.541784]
[1726970883492,0.14845728,147.83,147.82,43.31762559]
[1726970883698,0.12574159,147.84,147.83,6.7645]
[1726970887531,0.12574159,147.84,147.83,19.54034159]
[1726970890919,0.12574159,147.84,147.83,43.31722559]
[1726970891416,0.25098,147.83,147.81,6.765]
[1726970891622,0.25098,147.83,147.81,19.54084159]
[1726970894119,0.25098,147.83,147.8,7.0158779]
[1726970894835,0.13340415,147.81,147.8,7.0158779]
[1726970898705,0.38438415,147.81,147.8,0.2500779]
[1726970899113,0.38438415,147.81,147.8,7.0158779]
[1726970901126,0.38438415,147.81,147.8,0.2500779]
[1726970904015,0.38438415,147.81,147.8,13.02591949]
[1726970904414,0.38438415,147.81,147.8,19.79171949]
[1726970905533,0.38438415,147.81,147.8,0.2500779]
[1726970906326,0.38438415,147.81,147.8,7.0158779]
[1726970912136,0.13340415,147.81,147.8,7.0158779]
[1726970912367,0.13543985,147.84,147.83,6.7645]
[1726970912518,0.13713346,147.85,147.84,6.764]
[1726970914746,0.28535585,147.85,147.84,6.764]
[1726970916043,0.14822239,147.85,147.84,6.764]
[1726970921823,0.14822239,147.85,147.84,8.11672886]
[1726970922029,0.14822239,147.85,147.84,6.764]
[1726970922835,0.14822239,147.85,147.84,19.53984159]
[1726970923037,0.14822239,147.85,147.81,23.776884]
[1726970923241,0.14822239,147.85,147.84,12.77584159]
[1726970923752,0.14822239,147.85,147.84,19.53984159]
[1726970924345,0.14822239,147.85,147.84,6.764]
[1726970925434,0.14822239,147.85,147.81,19.54114159]
[1726970925435,0.25098,147.84,147.81,19.54114159]
[1726970925650,1.94222072,147.84,147.82,6.7647]
[1726970926645,0.25098,147.84,147.82,6.7647]
[1726970930055,0.03866729,147.86,147.82,6.7647]
[1726970930251,1.69123114,147.85,147.81,12.77584159]
[1726970930446,0.16415729,147.86,147.81,19.54114159]
[1726970930838,1.8555303,147.86,147.81,19.54114159]
[1726970932459,0.12549,147.85,147.81,19.54114159]
[1726970934877,0.39349246,147.82,147.81,19.54114159]
[1726970936341,0.14251246,147.82,147.81,19.54114159]
[1726970940946,0.25098,147.81,147.8,7.0158779]
[1726970941138,0.25098,147.81,147.8,19.79171949]
[1726970942146,0.25098,147.81,147.8,0.2500779]
[1726970943246,3.03e-06,147.85,147.81,26.6135]
[1726970943563,0.12420048,147.89,147.87,23.776884]
[1726970943764,0.2500779,147.95,147.94,6.7594]
[1726970943944,0.2500779,147.95,147.94,19.53524159]
[1726970944949,0.2500779,147.95,147.85,43.776884]
[1726970945157,0.2500779,147.95,147.92,6.7603]
[1726970945470,0.2500779,147.95,147.91,6.7607]
[1726970945642,0.2500779,147.95,147.92,19.53614159]
[1726970946661,0.2500779,147.95,147.92,12.77584159]
[1726970947154,0.25098,147.94,147.92,12.77584159]
[1726970948568,0.2500779,147.95,147.92,12.77584159]
[1726970949857,0.25098,147.94,147.92,12.77584159]
[1726970950250,0.25098,147.94,147.93,6.7599]
[1726970954677,0.25098,147.94,147.89,19.53714159]
[1726970954886,0.38797436,147.94,147.89,19.53714159]
[1726970955075,0.38797436,147.94,147.89,6.7613]
[1726970955270,0.38797436,147.94,147.9,6.7613]
[1726970956664,0.65870927,147.93,147.9,6.7613]
[1726970956869,0.25098,147.92,147.9,6.7613]
[1726970958982,0.25098,147.9,147.85,20.0]
[1726970959154,0.25098,147.9,147.87,12.77584159]
[1726970960481,0.25098,147.9,147.88,6.7621]
[1726970962358,0.25098,147.9,147.87,6.7625]
[1726970966478,0.25098,147.9,147.83,43.776884]
[1726970966689,0.25098,147.9,147.86,6.763]
[1726970967572,0.25098,147.88,147.8,12.54360143]
[1726970967779,0.25098,147.86,147.83,12.77584159]
[1726970969365,0.25098,147.86,147.85,6.7635]
[1726970974869,0.39956255,147.86,147.84,6.7639]
[1726970980482,0.39956255,147.86,147.83,19.54024159]
[1726970980686,0.65870927,147.85,147.83,19.54024159]
[1726970980998,0.65870927,147.85,147.83,6.7644]
[1726970981702,0.39956255,147.86,147.83,6.7644]
[1726970982372,0.39956255,147.86,147.83,19.54024159]
[1726970989599,0.39956255,147.86,147.83,6.7644]
[1726970993902,0.39956255,147.86,147.8,0.2500779]
[1726970994082,1.05827182,147.86,147.81,6.7653]
[1726970994801,0.14405002,147.82,147.81,6.7653]
[1726970995175,0.14405002,147.82,147.81,6.7654]
[1726971000496,0.14405002,147.82,147.81,31.89524227]
[1726971000885,0.14405002,147.82,147.81,51.08226468]
[1726971001080,0.14405002,147.82,147.81,30.542284]
[1726971001605,0.14405002,147.82,147.81,31.89487728]
[1726971001792,0.14405002,147.82,147.81,30.542284]
[1726971002425,0.14405002,147.82,147.81,31.89497678]
[1726971002606,0.14405002,147.82,147.81,30.542284]
[1726971003195,0.14405002,147.82,147.81,31.89503141]
[1726971003505,0.14405002,147.82,147.81,30.542284]
[1726971004088,0.14405002,147.82,147.81,6.7654]
[1726971004485,0.14405002,147.82,147.8,19.79171949]
[1726971004684,0.14405002,147.82,147.8,13.02591949]
[1726971004887,0.25098,147.81,147.8,0.2500779]
[1726971010515,0.12549,147.77,147.76,0.2500779]
[1726971010692,0.25098,147.77,147.76,0.2500779]
[1726971013415,7.01818,147.77,147.76,0.2500779]
[1726971013909,0.25098,147.77,147.76,0.2500779]
[1726971014911,0.39253457,147.77,147.76,0.2500779]
[1726971015299,1.05124384,147.77,147.76,0.2500779]
[1726971015699,0.39253457,147.77,147.76,0.2500779]
[1726971016011,1.05124384,147.77,147.76,0.2500779]
[1726971017208,0.39253457,147.77,147.76,0.2500779]
[1726971020998,1.05124384,147.77,147.76,0.2500779]
[1726971021810,2.22981945,147.77,147.76,0.2500779]
[1726971022407,8.33831018,147.77,147.76,0.2500779]
[1726971024523,52.77390345,147.77,147.76,0.2500779]
[1726971025019,52.11519418,147.77,147.76,0.2500779]
[1726971025227,59.14027834,147.77,147.76,0.2500779]
[1726971027307,39.14027834,147.77,147.76,0.2500779]
[1726971027824,59.14027834,147.77,147.76,0.2500779]
[1726971030127,59.79898761,147.77,147.76,0.2500779]
[1726971032222,39.14027834,147.77,147.76,0.2500779]
[1726971034947,39.93684665,147.77,147.76,0.2500779]
[1726971035235,39.27813738,147.77,147.76,0.2500779]
[1726971035434,39.93684665,147.77,147.76,0.2500779]
[1726971036026,39.79529208,147.77,147.76,0.2500779]
[1726971038424,51.34789893,147.77,147.76,0.2500779]
[1726971039642,71.34789893,147.77,147.76,0.2500779]
[1726971042249,70.68918966,147.77,147.76,0.2500779]
[1726971042636,70.68918966,147.77,147.72,0.1712293]
[1726971042637,7.02008,147.73,147.72,0.1712293]
[1726971042950,11.50180632,147.73,147.72,0.1712293]
[1726971043328,19.70791534,147.73,147.72,0.1712293]
[1726971046149,20.36662461,147.73,147.72,0.1712293]
[1726971046448,19.70791534,147.73,147.72,0.1712293]
[1726971048852,19.58242534,147.73,147.72,0.1712293]
[1726971049031,19.45693534,147.73,147.72,0.1712293]
[1726971050153,18.27716289,147.73,147.72,0.1712293]
[1726971051354,17.3863975,147.73,147.72,0.1712293]
[1726971053335,10.36006093,147.73,147.72,0.1712293]
[1726971054832,10.48731726,147.73,147.72,0.1712293]
[1726971059046,17.91512653,147.73,147.72,0.1712293]
[1726971059259,37.91512653,147.73,147.72,0.1712293]
[1726971059576,37.25641726,147.73,147.72,0.1712293]
[1726971060068,30.48731726,147.73,147.72,0.1712293]
[1726971060360,10.48731726,147.73,147.72,0.1712293]
[1726971060757,10.23633726,147.73,147.72,0.1712293]
[1726971062371,10.36182726,147.73,147.72,0.1712293]
[1726971062665,10.48731726,147.73,147.72,0.1712293]
[1726971065471,10.46555707,147.73,147.72,0.1712293]
[1726971074946,10.60565905,147.73,147.72,0.1712293]
[1726971076148,10.54734832,147.73,147.72,0.1712293]
[1726971079459,10.29636832,147.73,147.72,0.1712293]
[1726971080753,10.42185832,147.73,147.72,0.1712293]
[1726971080975,10.54734832,147.73,147.72,0.1712293]
[1726971084379,10.29636832,147.73,147.72,8.29469807]
[1726971084675,0.14010198,147.73,147.72,47.62348207]
[1726971084883,0.14010198,147.73,147.72,67.62348207]
[1726971085067,0.14010198,147.73,147.72,73.96798207]
[1726971086961,0.14010198,147.73,147.72,72.6140133]
[1726971087160,0.14010198,147.73,147.72,73.96736659]
[1726971087362,0.14010198,147.73,147.72,72.6140133]
[1726971089885,0.14010198,147.73,147.72,73.96736433]
[1726971094864,0.28375657,147.73,147.72,73.96736433]
[1726971095287,0.28375657,147.73,147.72,72.6140133]
[1726971095992,0.14365459,147.73,147.72,72.6140133]
[1726971096791,0.14365459,147.73,147.72,73.96736459]
[1726971097500,0.14365459,147.73,147.72,72.6140133]
[1726971097667,0.14365459,147.73,147.72,85.38985489]
[1726971097873,0.14365459,147.73,147.72,72.6140133]
[1726971098090,0.14365459,147.73,147.72,85.38985489]
[1726971098869,0.14365459,147.73,147.72,0.1712293]
[1726971100781,0.39463459,147.73,147.72,0.1712293]
[1726971101167,0.14365459,147.73,147.72,0.1712293]
[1726971103281,0.39463459,147.73,147.72,0.1712293]
[1726971108676,1.05334386,147.73,147.72,0.1712293]
[1726971109499,7.82244386,147.73,147.72,0.1712293]
[1726971111398,27.82244386,147.73,147.72,0.1712293]
[1726971112203,7.82244386,147.73,147.72,0.1712293]
[1726971112803,27.82244386,147.73,147.72,0.1712293]
[1726971113380,20.39463459,147.73,147.72,0.1712293]
[1726971113685,27.16373459,147.73,147.72,0.1712293]
[1726971115030,27.29912375,147.73,147.72,0.1712293]
[1726971115995,27.15546916,147.73,147.72,0.1712293]
[1726971116200,20.38636916,147.73,147.72,0.1712293]
[1726971116595,0.13538916,147.73,147.72,0.1712293]
[1726971117000,0.79409843,147.73,147.72,0.1712293]
[1726971117811,1.04507843,147.73,147.72,0.1712293]
[1726971120513,0.38636916,147.73,147.72,0.1712293]
[1726971121492,1.04507843,147.73,147.72,0.1712293]
[1726971123014,0.38636916,147.73,147.72,0.1712293]
[1726971124105,7.15546916,147.73,147.72,0.1712293]
[1726971124285,7.81417843,147.73,147.72,0.1712293]
[1726971128111,7.15546916,147.73,147.72,0.1712293]
[1726971128892,7.81417843,147.73,147.72,0.1712293]
[1726971130682,7.15546916,147.73,147.72,0.1712293]
[1726971134798,7.15546916,147.73,147.71,0.2500779]
[1726971134799,6.7695,147.72,147.71,0.2500779]
[1726971135005,7.67918927,147.72,147.71,0.2500779]
[1726971135702,27.67918927,147.72,147.71,0.2500779]
[1726971136499,27.67918927,147.72,147.67,0.2500779]
[1726971136500,6.7704,147.7,147.67,0.2500779]
[1726971136701,0.25098,147.68,147.67,0.2500779]
[1726971140300,7.02228,147.68,147.67,0.2500779]
[1726971140721,0.25098,147.68,147.67,0.2500779]
[1726971145128,20.13890335,147.73,147.67,0.2500779]
[1726971146205,0.13890335,147.73,147.67,0.2500779]
[1726971146609,0.12549,147.72,147.67,0.2500779]
[1726971147540,0.90968927,147.72,147.67,0.2500779]
[1726971147822,0.25098,147.72,147.67,0.2500779]
[1726971149838,0.25098,147.7,147.67,0.2500779]
[1726971150845,0.25098,147.71,147.67,0.2500779]
[1726971151043,7.02098,147.71,147.67,0.2500779]
[1726971151240,0.25098,147.7,147.67,0.2500779]
[1726971153039,0.25098,147.71,147.67,0.2500779]
[1726971154240,6.77,147.71,147.67,0.2500779]
[1726971154441,0.25098,147.7,147.67,0.2500779]
[1726971155145,0.37758388,147.68,147.67,0.2500779]
[1726971156747,1.03629315,147.68,147.67,0.2500779]
[1726971157052,0.37758388,147.68,147.67,0.2500779]
[1726971159739,1.03629315,147.68,147.67,0.2500779]
[1726971159929,0.37758388,147.68,147.67,0.2500779]
[1726971174937,0.52459134,147.68,147.67,0.2500779]
[1726971176048,0.39798746,147.68,147.67,0.2500779]
[1726971181461,1.05669673,147.68,147.67,0.2500779]
[1726971184584,0.25098,147.67,147.63,0.1712293]
[1726971185860,0.25098,147.65,147.63,0.1712293]
[1726971191569,0.25098,147.66,147.63,0.1712293]
[1726971194474,0.25098,147.67,147.63,0.1712293]
[1726971195092,0.3930585,147.64,147.63,0.1712293]
[1726971198998,0.3930585,147.64,147.62,0.2500779]
[1726971198999,0.25098,147.63,147.62,0.2500779]
[1726971199176,0.25098,147.63,147.62,0.1246779]
[1726971208779,0.25098,147.63,147.58,0.2500779]
[1726971209389,0.25098,147.61,147.58,0.2500779]
[1726971212190,0.25098,147.62,147.58,0.2500779]
[1726971212692,0.25098,147.62,147.56,23.776884]
[1726971213716,0.25098,147.62,147.55,18.7500779]
[1726971213717,0.65870927,147.61,147.55,18.7500779]
[1726971214007,0.25098,147.6,147.55,18.7500779]
[1726971214303,0.25098,147.58,147.55,18.7500779]
[1726971214503,0.25098,147.56,147.55,42.5269619]
[1726971214686,0.25098,147.56,147.54,16.1623293]
[1726971215088,0.3875917,147.55,147.54,39.9392133]
[1726971215611,0.3875917,147.55,147.54,0.1712293]
[1726971215810,1.04630097,147.55,147.54,0.1712293]
[1726971217304,0.3875917,147.55,147.54,0.1712293]
[1726971218700,1.04630097,147.55,147.54,0.1712293]
[1726971219303,0.3875917,147.55,147.54,0.1712293]
[1726971222491,0.3875917,147.55,147.5,15.9753]
[1726971222492,0.25098,147.54,147.5,19.9213072]
[1726971222714,0.25098,147.52,147.5,19.9213072]
[1726971223497,0.25098,147.52,147.5,19.4213072]
[1726971223814,0.90968927,147.52,147.5,19.4213072]
[1726971223992,0.25098,147.52,147.5,26.2009072]
[1726971224400,0.25098,147.52,147.5,18.9213072]
[1726971225911,0.25098,147.52,147.49,0.2335524]
[1726971226725,0.25098,147.52,147.49,20.2335524]
[1726971227617,0.25098,147.52,147.49,0.2335524]
[1726971228011,0.65870927,147.51,147.49,0.2335524]
[1726971228207,0.25098,147.5,147.49,0.2335524]
[1726971235222,0.39016146,147.5,147.49,0.2335524]
[1726971235510,1.04887073,147.5,147.49,0.2335524]
[1726971237190,0.79789073,147.5,147.49,0.2335524]
[1726971237392,0.13918146,147.5,147.49,0.2335524]
[1726971238406,0.39016146,147.5,147.49,0.2335524]
[1726971240199,1.04887073,147.5,147.49,0.2335524]
[1726971240416,0.39016146,147.5,147.49,0.2335524]
[1726971242223,0.13918146,147.5,147.49,0.2335524]
[1726971242923,0.13918146,147.5,147.49,7.0136524]
[1726971243113,0.13918146,147.5,147.49,30.7905364]
[1726971245522,0.13918146,147.5,147.49,0.2335524]
[1726971245898,0.39016146,147.5,147.49,0.2335524]
[1726971247021,0.13918146,147.5,147.49,30.7905364]
[1726971247920,0.13918146,147.5,147.49,0.2335524]
[1726971249503,0.13918146,147.5,147.49,30.7905364]
[1726971250401,0.13918146,147.5,147.49,0.2335524]
[1726971252031,0.13918146,147.5,147.49,7.0136524]
[1726971252411,0.13918146,147.5,147.49,0.2335524]
[1726971254014,0.13918146,147.5,147.49,24.0104364]
[1726971254414,0.39016146,147.5,147.49,0.2335524]
[1726971254619,0.13918146,147.5,147.49,0.2335524]
[1726971255233,0.27200716,147.5,147.49,0.2335524]
[1726971256114,0.1328257,147.5,147.49,24.0104364]
[1726971256407,0.1328257,147.5,147.49,32.14651665]
[1726971256621,0.1328257,147.5,147.49,44.92235824]
[1726971258636,0.1328257,147.5,147.49,63.56637799]
[1726971258930,0.1328257,147.5,147.49,64.92200766]
[1726971259609,0.1328257,147.5,147.49,63.56637799]
[1726971259813,0.1328257,147.5,147.49,64.92200725]
[1726971260816,0.1328257,147.5,147.49,63.56637799]
[1726971261447,0.1328257,147.5,147.49,64.92200667]
[1726971261605,0.13360446,147.52,147.5,43.776884]
[1726971261809,0.13360446,147.52,147.51,64.68721432]
[1726971262108,0.13360446,147.52,147.51,63.33192559]
[1726971263026,0.13360446,147.52,147.51,64.68745234]
[1726971263422,0.13360446,147.52,147.51,63.33192559]
[1726971263807,0.13360446,147.52,147.51,64.68735235]
[1726971264012,0.14009052,147.53,147.52,43.776884]
[1726971264236,0.13508415,147.54,147.53,13.1958]
[1726971264429,6.3746174,147.65,147.56,43.776884]
[1726971264635,6.3746174,147.65,147.57,44.68399012]
[1726971264928,6.3746174,147.65,147.57,64.68399012]
[1726971265232,0.2863174,147.65,147.57,80.18799012]
[1726971265435,0.2863174,147.65,147.57,78.83312559]
[1726971267613,0.2863174,147.65,147.57,80.18770087]
[1726971267808,0.2863174,147.65,147.57,78.83312559]
[1726971268234,0.2863174,147.65,147.57,80.18770603]
[1726971268424,0.2863174,147.65,147.59,26.4176]
[1726971268637,0.2863174,147.65,147.64,6.7732]
[1726971268814,0.2863174,147.65,147.64,30.550084]
[1726971269622,0.2863174,147.65,147.63,23.776884]
[1726971269818,0.2863174,147.65,147.63,30.550384]
[1726971270224,0.2863174,147.65,147.63,23.776884]
[1726971270624,0.2863174,147.65,147.63,20.0]
[1726971270933,0.2863174,147.65,147.64,23.776884]
[1726971271515,0.25098,147.64,147.61,20.0]
[1726971271721,0.25098,147.64,147.61,6.7746]
[1726971272322,0.25098,147.64,147.61,6.7745]
[1726971272919,0.25098,147.64,147.62,23.776884]
[1726971274654,0.25098,147.64,147.61,43.776884]
[1726971275128,0.14292575,147.62,147.61,43.776884]
[1726971275334,0.14306737,147.63,147.62,26.7741]
[1726971275537,0.14306737,147.63,147.62,39.54994159]
[1726971277617,0.14306737,147.63,147.62,63.32682559]
[1726971279335,0.14306737,147.63,147.62,50.550984]
[1726971279642,0.14306737,147.63,147.62,63.32682559]
[1726971285436,0.27846217,147.63,147.62,63.32682559]
[1726971288939,0.27846217,147.63,147.62,26.7741]
[1726971290431,0.27846217,147.63,147.62,50.550984]
[1726971294448,0.27846217,147.63,147.62,51.9055224]
[1726971294948,0.27846217,147.63,147.62,50.550984]
[1726971295120,0.41939761,147.63,147.62,50.550984]
[1726971295626,0.41939761,147.63,147.62,30.550984]
[1726971296030,0.27633024,147.63,147.62,30.550984]
[1726971297149,0.27633024,147.63,147.61,23.776884]
[1726971297666,0.27633024,147.63,147.61,6.7745]
[1726971300462,0.27633024,147.63,147.62,31.90579444]
[1726971300772,0.27633024,147.63,147.62,30.550984]